fUSD/lending_fUSD_20250225
["ID","MTS","AMOUNT","RATE_DAILY","PERIOD"]
[354438425,1740495046170,-500.0,0.00034998,2]
[354438426,1740495046179,-1561.86,0.00034998,2]
[354438427,1740495046188,-433.89019953,0.00034998,2]
[354438428,1740495046198,-500.0,0.00034998,2]
[354438429,1740495046208,-500.0,0.00034998,2]
[354438430,1740495046218,-500.0,0.00034998,2]
[354438431,1740495046228,-500.0,0.00034998,2]
[354438432,1740495046238,-530.69801172,0.00034998,2]
[354438433,1740495046247,-500.0,0.00034998,2]
[354438434,1740495046256,-500.0,0.00034998,2]
[354438435,1740495046266,-500.0,0.00034998,2]
[354438436,1740495046275,-1000.0,0.00034999,2]
[354438437,1740495046287,-1000.0,0.00034999,2]
[354438438,1740495046296,-1000.0,0.00034999,2]
[354438439,1740495046306,-1000.0,0.00034999,2]
[354438440,1740495046315,-1000.0,0.00034999,2]
[354438441,1740495046325,-1000.0,0.00034999,2]
[354438442,1740495046334,-1000.0,0.00034999,2]
[354438443,1740495046343,-1000.0,0.00034999,2]
[354438444,1740495046352,-1000.0,0.00034999,2]
[354438445,1740495046362,-1000.0,0.00034999,2]
[354438446,1740495046371,-1000.0,0.00034999,2]
[354438447,1740495046380,-1000.0,0.00034999,2]
[354438448,1740495046389,-1000.0,0.00034999,2]
[354438449,1740495046399,-1000.0,0.00034999,2]
[354438450,1740495046408,-1000.0,0.00034999,2]
[354438451,1740495046418,-1000.0,0.00034999,2]
[354438452,1740495046428,-1000.0,0.00034999,2]
[354438453,1740495046437,-1000.0,0.00034999,2]
[354438454,1740495046446,-1000.0,0.00034999,2]
[354438455,1740495046455,-1000.0,0.00034999,2]
[354438456,1740495046464,-1000.0,0.00034999,2]
[354438457,1740495046473,-1000.0,0.00034999,2]
[354438458,1740495046483,-1000.0,0.00034999,2]
[354438459,1740495046492,-265.0,0.00034999,2]
[354438460,1740495046502,-300.0,0.00034999,10]
[354438461,1740495046512,-300.0,0.00034999,10]
[354438462,1740495046521,-303.25873878,0.00034999,10]
[354438463,1740495046534,-509.92858056,0.00034999,2]
[354438464,1740495046544,-500.0,0.00034999,2]
[354438465,1740495046554,-500.0,0.00034999,2]
[354438466,1740495046563,-500.0,0.00034999,2]
[354438467,1740495046573,-500.0,0.00034999,2]
[354438468,1740495046583,-333.2447315,0.00034999,2]
[354438469,1740495046592,-500.0,0.00034999,2]
[354438470,1740495046601,-500.0,0.00034999,2]
[354438471,1740495046610,-514.96,0.00034999,2]
[354438472,1740495046619,-500.0,0.00034999,2]
[354438473,1740495046629,-500.0,0.00034999,2]
[354438474,1740495046638,-500.0,0.00034999,2]
[354438475,1740495046647,-271.06785423,0.00034999,2]
[354438476,1740495046657,-500.0,0.00034999,2]
[354438477,1740495046666,-500.0,0.00034999,2]
[354438478,1740495046675,-500.0,0.00034999,2]
[354438479,1740495046685,-551.54,0.00034999,2]
[354438481,1740495046694,-498.4578406,0.00034999,2]
[354438483,1740495046703,-500.0,0.00034999,2]
[354438484,1740495046713,-500.0,0.00034999,2]
[354438485,1740495046722,-500.0,0.00034999,2]
[354438486,1740495046732,-500.0,0.00034999,2]
[354438487,1740495046741,-500.0,0.00034999,2]
[354438488,1740495046751,-582.66972645,0.00034999,2]
[354438489,1740495046760,-548.98766249,0.00034999,2]
[354438490,1740495046769,-500.0,0.00034999,2]
[354438491,1740495046778,-500.0,0.00034999,2]
[354438492,1740495046790,-500.0,0.00034999,2]
[354438493,1740495046800,-500.0,0.00034999,2]
[354438494,1740495046809,-500.0,0.00034999,2]
[354438495,1740495046819,-500.0,0.00034999,2]
[354438496,1740495046828,-500.0,0.00034999,2]
[354438497,1740495046837,-500.0,0.00034999,2]
[354438498,1740495046847,-500.0,0.00034999,2]
[354438499,1740495046856,-500.0,0.00034999,2]
[354438500,1740495046866,-500.0,0.00034999,2]
[354438501,1740495046875,-500.0,0.00034999,2]
[354438502,1740495046885,-500.0,0.00034999,2]
[354438503,1740495046893,-500.0,0.00034999,2]
[354438504,1740495046908,-500.0,0.00034999,2]
[354438505,1740495046917,-500.0,0.00034999,2]
[354438506,1740495046927,-500.0,0.00034999,2]
[354438507,1740495046936,-500.0,0.00034999,2]
[354438508,1740495046947,-500.0,0.00034999,2]
[354438509,1740495046955,-500.0,0.00034999,2]
[354438510,1740495046964,-629.59,0.00034999,2]
[354438511,1740495046973,-500.0,0.00034999,2]
[354438512,1740495046983,-500.0,0.00034999,2]
[354438513,1740495046991,-500.0,0.00034999,2]
[354438514,1740495047001,-500.0,0.00034999,2]
[354438515,1740495047010,-500.0,0.00034999,2]
[354438516,1740495047019,-500.0,0.00034999,2]
[354438517,1740495047028,-500.0,0.00034999,2]
[354438518,1740495047039,-611.25,0.00034999,2]
[354438519,1740495047049,-500.0,0.00034999,2]
[354438520,1740495047058,-500.0,0.00034999,2]
[354438521,1740495047067,-500.0,0.00034999,2]
[354438522,1740495047076,-500.0,0.00034999,2]
[354438523,1740495047085,-500.0,0.00034999,7]
[354438524,1740495047095,-500.0,0.00034999,2]
[354438525,1740495047104,-1911.38,0.00034999,2]
[354438526,1740495047114,-500.0,0.00034999,2]
[354438527,1740495047123,-500.0,0.00034999,2]
[354438528,1740495047133,-500.0,0.00034999,2]
[354438529,1740495047143,-974.08,0.00034999,2]
[354438530,1740495047152,-500.0,0.00034999,2]
[354438531,1740495047161,-500.0,0.00034999,2]
[354438532,1740495047171,-500.0,0.00034999,2]
[354438533,1740495047180,-500.0,0.00034999,2]
[354438534,1740495047190,-500.0,0.00034999,2]
[354438535,1740495047199,-500.0,0.00034999,2]
[354438536,1740495047209,-500.0,0.00034999,2]
[354438537,1740495047218,-500.0,0.00034999,2]
[354438538,1740495047227,-500.0,0.00034999,2]
[354438539,1740495047236,-500.0,0.00034999,2]
[354438540,1740495047245,-30953.24596954,0.00035,2]
[354438541,1740495047259,-5595.82016693,0.00035,2]
[354438542,1740495047270,-9782.18914097,0.00035,2]
[354438543,1740495047284,-109047.8185466,0.00035,2]
[354438544,1740495047293,-34489.94011789,0.00035,30]
[354438545,1740495047304,-748.63230573,0.00035,30]
[354438546,1740495047315,-760.70572278,0.00035,30]
[354438547,1740495047338,-15000.0,0.0003465,120]
[354438548,1740495047347,-30405.19191076,0.00035,30]
[354438549,1740495047359,-816.924,0.00035,30]
[354438550,1740495047371,-2346.3526878,0.00035,30]
[354438551,1740495047551,-745.01,0.00034075,120]
[354438552,1740495047561,-15000.0,0.00034655,120]
[354438553,1740495047571,-405.46203254,0.0003466,120]
[354438554,1740495047582,-1904.22084001,0.0003466,120]
[354438555,1740495047593,-680.44,0.0003466,120]
[354438556,1740495047604,-4486.74215001,0.0003466,120]
[354438557,1740495047617,-952.336815,0.0003466,120]
[354438558,1740495047628,-797.2045167,0.0003466,120]
[354438559,1740495047640,-455.84,0.0003466,120]
[354438560,1740495047651,-1012.78407868,0.0003466,120]
[354438561,1740495047670,-885.4875,0.0003466,120]
[354438562,1740495047681,-479.0786,0.0003466,120]
[354438563,1740495047720,-1581.93781418,0.0003466,120]
[354438564,1740495047732,-1358.46565288,0.0003466,120]
[354438565,1740495047742,-1608.53435132,0.00034665,120]
[354438566,1740495047888,-13391.46564868,0.00034665,120]
[354438567,1740495047898,-15000.0,0.0003467,120]
[354438568,1740495047908,-15000.0,0.00034675,120]
[354438569,1740495047918,-15000.0,0.0003468,120]
[354438570,1740495047930,-15000.0,0.00034685,120]
[354438571,1740495047940,-24461.75939143,0.00034987,2]
[354438572,1740495047950,-205532.98129735,0.00035,30]
[354438573,1740495047961,-31198.70000075,0.00035,30]
[354438574,1740495047972,-1957.24645456,0.00035,30]
[354438575,1740495047983,-1189.33499715,0.00035,30]
[354438576,1740495047995,-964.4989782,0.00035,30]
[354438577,1740495127134,151.0,0.00023,30]
[354438578,1740495234340,347.0,0.000168,2]
[354438584,1740495428471,151.0,0.00023,30]
[354438598,1740495725972,151.0,0.00023,30]
[354438630,1740496025535,151.0,0.00023,30]
[354438671,1740496232497,-166.1,0.00024369,30]
[354438672,1740496232507,-150.0,0.0002454,2]
[354438673,1740496232522,-150.0,0.00025443,2]
[354438674,1740496232532,-182.71,0.00025738,30]
[354438675,1740496232542,-518.26305207,0.00026762,2]
[354438676,1740496232553,-150.0,0.00026806,2]
[354438677,1740496232563,-53.80719272,0.00026849,2]
[354438678,1740496232576,-119.86280728,0.00026849,2]
[354438679,1740496232585,-283.82,0.00026938,2]
[354438680,1740496232595,-226.9821445,0.00027006,2]
[354438681,1740496232604,-300.0,0.00027106,2]
[354438682,1740496232614,-200.981,0.00027107,30]
[354438683,1740496232624,-986.58304626,0.00027107,2]
[354438684,1740496232636,-2226.36125196,0.00027107,2]
[354438685,1740496232648,-6787.04570178,0.00027107,2]
[354438686,1740496232657,-6403.16,0.00027107,10]
[354438687,1740496232667,-5037.0,0.000277,5]
[354438688,1740496232676,-755.25241302,0.000283,2]
[354438689,1740496232686,-150.0,0.00028398,2]
[354438690,1740496232696,-10014.17,0.00028399,2]
[354438691,1740496232706,-3769.87,0.00028399,2]
[354438692,1740496232716,-9999.99,0.000284,2]
[354438693,1740496232725,-499.99,0.000284,2]
[354438694,1740496232735,-299.99,0.000284,12]
[354438695,1740496232745,-150.99,0.000284,2]
[354438696,1740496232754,-1713.08,0.000284,5]
[354438697,1740496232763,-329.62,0.000284,2]
[354438698,1740496232772,-150.99,0.000284,2]
[354438699,1740496232782,-221.0791,0.00028476,30]
[354438700,1740496232791,-508.45,0.00029198,2]
[354438701,1740496232801,-420.0,0.00029301,2]
[354438702,1740496232811,-3990.26402194,0.00029766,2]
[354438703,1740496232820,-302.0,0.00029845,30]
[354438704,1740496232829,-2395.86880326,0.0002995,2]
[354438705,1740496232841,-6665.01119674,0.0002995,2]
[354438706,1740496232850,-1000.0,0.00030061,2]
[354438707,1740496232860,-1058.39908508,0.00030644,2]
[354438708,1740496232880,-1224.8236,0.00030644,2]
[354438709,1740496232892,-4366.45,0.00030644,2]
[354438710,1740496232911,-544.4382,0.00030644,2]
[354438711,1740496232935,-3659.30572431,0.00030644,2]
[354438712,1740496232945,-1234.793,0.000307,27]
[354438713,1740496232955,-165.375,0.000307,27]
[354438714,1740496232964,-500.0,0.00030842,2]
[354438715,1740496232974,-442.380621,0.00031,32]
[354438716,1740496232984,-350.59,0.00031038,120]
[354438717,1740496232993,-1722.61,0.00031121,2]
[354438718,1740496233002,-704.26169333,0.00031205,2]
[354438719,1740496233012,-4248.3,0.00031215,2]
[354438720,1740496233195,-2280.7042125,0.00031265,2]
[354438721,1740496233206,-1464.44,0.00031312,2]
[354438722,1740496233215,-692.6,0.00031438,2]
[354438723,1740496233226,-508.45,0.00031462,2]
[354438724,1740496233236,-587.0,0.00031675,2]
[354438725,1740496233245,-311.62,0.00031701,2]
[354438726,1740496233256,-1135.63,0.00031795,2]
[354438728,1740496233266,-900.0,0.00032,33]
[354438729,1740496233280,-4302.04,0.00032171,2]
[354438730,1740496233291,-150.0,0.00032774,2]
[354438731,1740496233300,-500.0,0.00032925,2]
[354438732,1740496233310,-900.0,0.00033,34]
[354438733,1740496233321,-194.08,0.00033007,5]
[354438734,1740496233331,-1000.0,0.00033122,2]
[354438735,1740496233341,-2080.61,0.00033136,2]
[354438736,1740496233350,-1444.6,0.0003334,2]
[354438737,1740496233360,-164.05,0.0003337,2]
[354438738,1740496233372,-2000.0,0.000334,120]
[354438739,1740496233381,-1000.0,0.00033553,2]
[354438740,1740496233391,-1000.0,0.00033553,2]
[354438741,1740496233400,-250.0,0.00033554,2]
[354438742,1740496233410,-1010.0,0.0003363,2]
[354438743,1740496233420,-1000.0,0.0003363,2]
[354438744,1740496233430,-1000.0,0.0003363,2]
[354438746,1740496233440,-1000.0,0.0003363,2]
[354438748,1740496233450,-1000.0,0.0003363,2]
[354438749,1740496233460,-2631.55974886,0.0003363,2]
[354438752,1740496233482,-132703.53031987,0.0003363,2]
[354438754,1740496233491,-150.89625195,0.00033673,5]
[354438756,1740496233501,-500.0,0.00033673,2]
[354438758,1740496233511,-23900.0,0.00033673,2]
[354438760,1740496233521,-158.6199,0.00033696,2]
[354438762,1740496233531,-1000.0,0.00033696,2]
[354438764,1740496233540,-1000.0,0.00033696,2]
[354438766,1740496233549,-1000.0,0.00033696,2]
[354438767,1740496233559,-1000.0,0.00033696,2]
[354438769,1740496233569,-517.3708,0.00033696,2]
[354438771,1740496233578,-508.45,0.00033726,2]
[354438773,1740496233588,-2000.0,0.00033796,120]
[354438775,1740496233597,-1000.0,0.00033796,2]
[354438777,1740496233607,-1000.0,0.00033796,2]
[354438778,1740496233616,-1000.0,0.00033796,2]
[354438779,1740496233626,-1000.0,0.00033796,2]
[354438780,1740496233635,-474.82,0.00033853,2]
[354438781,1740496233645,-1000.0,0.00033853,2]
[354438782,1740496233655,-1000.0,0.00033853,2]
[354438783,1740496233664,-1000.0,0.00033853,2]
[354438784,1740496233673,-265.0,0.00033853,2]
[354438785,1740496233683,-1000.0,0.00033853,2]
[354438786,1740496233692,-1000.0,0.00033853,2]
[354438787,1740496233702,-1000.0,0.00033853,2]
[354438788,1740496233712,-1000.0,0.00033853,2]
[354438789,1740496233722,-1000.0,0.00033853,2]
[354438790,1740496233731,-1000.0,0.00033853,2]
[354438791,1740496233741,-1782.0,0.000339,7]
[354438792,1740496233751,-297.16,0.00034,120]
[354438793,1740496233761,-3558.52,0.00034,120]
[354438794,1740496233780,-900.0,0.00034,35]
[354438795,1740496233790,-3290.35,0.00034,120]
[354438796,1740496233800,-3031.29,0.00034,120]
[354438797,1740496233810,-638.74,0.00034,120]
[354438798,1740496233824,-300.55444405,0.00034,2]
[354438799,1740496233844,-235.15,0.00034,120]
[354438800,1740496233864,-150.46,0.00034152,2]
[354438801,1740496233885,-308.77496291,0.0003441,2]
[354438802,1740496233897,-418.97809976,0.00034424,120]
[354438803,1740496233908,-8408.20980948,0.00034425,2]
[354438804,1740496233918,-288.57651026,0.0003444,6]
[354438805,1740496233929,-1148.65,0.000345,120]
[354438806,1740496233939,-3269.2,0.000345,120]
[354438807,1740496233950,-14999.99,0.000345,120]
[354438808,1740496233960,-15000.0,0.000345,120]
[354438809,1740496233969,-15000.0,0.000345,120]
[354438810,1740496233979,-15000.0,0.000345,120]
[354438811,1740496233989,-800.0,0.000345,12]
[354438812,1740496233999,-15000.0,0.00034505,120]
[354438813,1740496234009,-15000.0,0.00034505,120]
[354438814,1740496234019,-5350.68853845,0.00034505,3]
[354438815,1740496234029,-15000.0,0.0003451,120]
[354438816,1740496234040,-15000.0,0.0003451,120]
[354438817,1740496234050,-10701.3770769,0.0003451,3]
[354438818,1740496234060,-16052.0656154,0.00034515,3]
[354438819,1740496234071,-15000.0,0.00034515,120]
[354438820,1740496234081,-15000.0,0.00034515,120]
[354438821,1740496234091,-15000.0,0.0003452,120]
[354438822,1740496234101,-15000.0,0.0003452,120]
[354438823,1740496234111,-16052.0656154,0.0003452,3]
[354438824,1740496234121,-500.0,0.00034524,7]
[354438825,1740496234131,-500.0,0.00034524,7]
[354438826,1740496234141,-426.79709903,0.00034524,7]
[354438827,1740496234151,-175.25457586,0.00034524,7]
[354438828,1740496234160,-15000.0,0.00034525,120]
[354438829,1740496234169,-15000.0,0.00034525,120]
[354438830,1740496234179,-5350.68853845,0.00034525,3]
[354438831,1740496234189,-10134.22,0.0003453,120]
[354438832,1740496234199,-15000.0,0.0003453,120]
[354438833,1740496234208,-8408.20980948,0.00034533,2]
[354438834,1740496234218,-15000.0,0.00034535,120]
[354438835,1740496234227,-938.42,0.0003454,120]
[354438836,1740496234237,-5350.68853845,0.00034585,3]
[354438837,1740496234247,-1600.0,0.000346,12]
[354438838,1740496234257,-261.08168485,0.000346,8]
[354438839,1740496234267,-1000.0,0.00034605,2]
[354438840,1740496234282,-694.5252,0.00034605,2]
[354438841,1740496234295,-10701.3770769,0.00034615,3]
[354438842,1740496234305,-21446.7397,0.00034625,2]
[354438843,1740496234315,-8408.20980948,0.00034642,2]
[354438844,1740496234325,-515.57267,0.0003465,18]
[354438845,1740496234334,-5350.68853845,0.0003468,3]
[354438846,1740496234344,-10701.3770769,0.00034685,3]
[354438847,1740496234355,-15000.0,0.0003469,120]
[354438848,1740496234367,-5350.68853845,0.0003469,3]
[354438849,1740496234378,-10701.3770769,0.00034695,3]
[354438850,1740496234388,-15000.0,0.00034695,120]
[354438851,1740496234399,-15000.0,0.000347,120]
[354438852,1740496234409,-2400.0,0.000347,12]
[354438853,1740496234420,-5350.68853845,0.000347,3]
[354438854,1740496234430,-15000.0,0.00034705,120]
[354438855,1740496234440,-10701.3770769,0.00034705,3]
[354438856,1740496234451,-15000.0,0.0003471,120]
[354438857,1740496234461,-5350.68853845,0.0003471,3]
[354438858,1740496234472,-5350.68853845,0.00034715,3]
[354438859,1740496234482,-15000.0,0.00034715,120]
[354438860,1740496234492,-15000.0,0.0003472,120]
[354438861,1740496234502,-10701.3770769,0.0003472,3]
[354438862,1740496234512,-15000.0,0.00034725,120]
[354438863,1740496234522,-5350.68853845,0.00034725,3]
[354438864,1740496234533,-2768.9219263,0.00034725,3]
[354438865,1740496234542,-6680.86781647,0.0003473,120]
[354438866,1740496234559,-677.54400352,0.0003473,120]
[354438874,1740496238463,-427.13103346,0.000283,2]
[354438875,1740496238476,-112.92203652,0.000283,2]
[354438876,1740496238486,-540.05306998,0.00030937,2]
[354438877,1740496238497,-38.11705771,0.0003473,120]
[354438878,1740496238521,-7603.4711223,0.0003473,120]
[354438879,1740496238531,-5350.68853845,0.0003473,3]
[354438880,1740496238541,-2768.9219263,0.0003473,3]
[354438881,1740496238559,-15000.0,0.00034735,120]
[354438882,1740496238569,-500.0,0.00034739,7]
[354438883,1740496238579,-500.0,0.00034739,7]
[354438884,1740496238589,-500.0,0.00034739,7]
[354438885,1740496238600,-500.0,0.00034739,7]
[354438886,1740496238609,-500.0,0.00034739,7]
[354438887,1740496238619,-500.0,0.00034739,7]
[354438888,1740496238629,-6154.62,0.0003474,120]
[354438889,1740496238638,-261.08168484,0.0003475,8]
[354438890,1740496238648,-8408.20980948,0.0003475,2]
[354438891,1740496238658,-3200.0,0.000348,12]
[354438892,1740496238667,-909.34146577,0.0003485,30]
[354438893,1740496238676,-8408.20980948,0.00034858,2]
[354438894,1740496238686,-5350.68853845,0.00034875,3]
[354438895,1740496238696,-5350.68853845,0.00034878,3]
[354438896,1740496238706,-2768.9219263,0.00034878,3]
[354438897,1740496238715,-150.76,0.00034878,2]
[354438898,1740496238725,-5350.68853845,0.00034879,3]
[354438899,1740496238734,-2768.9219263,0.00034879,3]
[354438900,1740496238743,-4694.78617543,0.0003488,3]
[354438902,1740496238755,-399.92721023,0.0003488,3]
[354438904,1740496238770,-5606.66369124,0.0003488,3]
[354438906,1740496238779,-5537.8438526,0.0003488,3]
[354438908,1740496238789,-16052.0656154,0.00034888,3]
[354438910,1740496238804,-5537.8438526,0.00034888,3]
[354438912,1740496238814,-150.76,0.00034888,2]
[354438914,1740496238823,-5350.68853845,0.0003489,3]
[354438916,1740496238833,-16052.0656154,0.0003489,3]
[354438918,1740496238843,-13844.6096315,0.0003489,3]
[354438920,1740496238853,-154.117595,0.0003489,7]
[354438922,1740496238862,-150.76,0.0003489,2]
[354438924,1740496238872,-151.0,0.00034898,7]
[354438926,1740496238882,-545.65603706,0.00034898,7]
[354438928,1740496238893,-819.05748294,0.00034898,7]
[354438930,1740496238903,-1364.71352,0.00034898,7]
[354438932,1740496238912,-1129.10655445,0.00034898,2]
[354439008,1740496240562,-31059.79514555,0.00034898,2]
[354439009,1740496240573,-2000.0,0.00034898,120]
[354439010,1740496240583,-500.0,0.00034899,2]
[354439011,1740496240593,-1000.0,0.00034899,2]
[354439012,1740496240602,-261.08168484,0.00034899,8]
[354439013,1740496240612,-7500.0,0.000349,3]
[354439014,1740496240622,-535.23840779,0.000349,2]
[354439015,1740496240632,-39712.5875,0.000349,2]
[354439016,1740496240641,-171.62926682,0.000349,7]
[354439017,1740496240651,-4000.0,0.000349,12]
[354439018,1740496240661,-3307.52213324,0.000349,2]
[354439019,1740496240671,-435.6930867,0.000349,2]
[354439020,1740496240681,-12890.17913981,0.000349,2]
[354439021,1740496240690,-540.8796182,0.000349,2]
[354439022,1740496240700,-350.59,0.00034918,120]
[354439024,1740496240710,-515.57267,0.0003496,19]
[354439026,1740496240719,-8408.20980948,0.00034967,2]
[354439028,1740496240728,-443.38219656,0.00034969,2]
[354439029,1740496240738,-150.76,0.0003497,2]
[354439031,1740496240748,-500.0,0.00034973,5]
[354439033,1740496240757,-159.71466713,0.00034973,5]
[354439035,1740496240767,-2768.9219263,0.00034976,3]
[354439037,1740496240777,-2768.9219263,0.00034979,3]
[354439039,1740496240787,-27689.219263,0.0003498,3]
[354439041,1740496240800,-41533.8288945,0.0003498,3]
[354439043,1740496240810,-3328.0,0.00034986,2]
[354439045,1740496240820,-2768.9219263,0.00034987,3]
[354439047,1740496240830,-150.76,0.00034989,2]
[354439049,1740496240840,-150.76,0.00034989,2]
[354439051,1740496240850,-150.76,0.00034989,2]
[354439053,1740496240860,-150.76,0.00034989,2]
[354439055,1740496240870,-150.76,0.00034989,2]
[354439057,1740496240880,-150.76,0.00034989,2]
[354439059,1740496240891,-2015.68,0.0003499,60]
[354439061,1740496240901,-273.002806,0.0003499,7]
[354439063,1740496240911,-273.002806,0.0003499,7]
[354439065,1740496240921,-151.0,0.0003499,7]
[354439067,1740496240930,-151.0,0.0003499,7]
[354439069,1740496240940,-151.0,0.0003499,7]
[354439071,1740496240949,-151.0,0.0003499,7]
[354439073,1740496240958,-190.551617,0.0003499,7]
[354439075,1740496240968,-190.551617,0.0003499,7]
[354439077,1740496240978,-151.0,0.0003499,7]
[354439079,1740496240987,-1364.71352,0.0003499,7]
[354439081,1740496240997,-1364.71352,0.0003499,7]
[354439083,1740496241007,-1364.71352,0.0003499,7]
[354439085,1740496241017,-1364.71352,0.0003499,7]
[354439087,1740496241027,-443.38219656,0.0003499,2]
[354439089,1740496241036,-150.76,0.0003499,2]
[354439091,1740496241050,-150.76,0.0003499,2]
[354439093,1740496241060,-150.76,0.0003499,2]
[354439095,1740496241069,-150.76,0.0003499,2]
[354439097,1740496241079,-150.76,0.0003499,2]
[354439099,1740496241088,-150.76,0.0003499,2]
[354439101,1740496241098,-150.76,0.0003499,2]
[354439103,1740496241108,-150.76,0.0003499,2]
[354439105,1740496241117,-150.76,0.0003499,2]
[354439107,1740496241126,-150.76,0.0003499,2]
[354439109,1740496241136,-150.76,0.0003499,2]
[354439111,1740496241146,-150.76,0.0003499,2]
[354439113,1740496241155,-150.76,0.0003499,2]
[354439115,1740496241165,-150.76,0.0003499,2]
[354439117,1740496241175,-150.76,0.0003499,2]
[354439118,1740496241185,-150.76,0.0003499,2]
[354439120,1740496241195,-150.76,0.0003499,2]
[354439122,1740496241205,-150.76,0.0003499,2]
[354439124,1740496241215,-150.76,0.0003499,2]
[354439126,1740496241225,-150.76,0.0003499,2]
[354439128,1740496241235,-150.76,0.0003499,2]
[354439130,1740496241245,-150.76,0.0003499,2]
[354439132,1740496241254,-150.76,0.0003499,2]
[354439134,1740496241263,-150.76,0.0003499,2]
[354439136,1740496241275,-150.76,0.0003499,2]
[354439138,1740496241286,-150.76,0.0003499,2]
[354439140,1740496241298,-150.76,0.0003499,2]
[354439143,1740496241309,-150.76,0.0003499,2]
[354439146,1740496241321,-150.76,0.0003499,2]
[354439149,1740496241330,-150.76,0.0003499,2]
[354439150,1740496241339,-150.76,0.0003499,2]
[354439152,1740496241349,-150.76,0.0003499,2]
[354439154,1740496241359,-150.76,0.0003499,2]
[354439156,1740496241369,-150.76,0.0003499,2]
[354439158,1740496241379,-150.76,0.0003499,2]
[354439159,1740496241388,-150.76,0.0003499,2]
[354439160,1740496241398,-150.76,0.0003499,2]
[354439161,1740496241407,-150.76,0.0003499,2]
[354439162,1740496241416,-11193.8796688,0.00034997,3]
[354439163,1740496241428,-1756.5895362,0.00034997,3]
[354439164,1740496241439,-1748.78019238,0.00034997,3]
[354439165,1740496241450,-300.75060262,0.00034997,3]
[354439166,1740496241466,-300.0,0.00034999,10]
[354439173,1740496241614,-94.32139738,0.00034999,10]
[354439175,1740496241626,-205.67860262,0.00034999,10]
[354439177,1740496241636,-49.17540105,0.00034999,2]
[354439180,1740496241651,-796.61648349,0.00034999,2]
[354439183,1740496241680,-154.20811546,0.00034999,2]
[354439185,1740496241690,-999.0,0.00034999,120]
[354439187,1740496241700,-4801.38032041,0.00034999,2]
[354439189,1740496241711,-14274.02248599,0.00034999,2]
[354439191,1740496241722,-438.94,0.00034999,2]
[354439193,1740496241733,-479.35999948,0.00034999,2]
[354439196,1740496241745,-416.14063303,0.00034999,2]
[354439198,1740496241761,-176248.96138483,0.00034999,2]
[354439200,1740496241772,-19537.28665437,0.00034999,2]
[354439203,1740496241784,-261.415,0.00034999,2]
[354439409,1740496243602,-540.05306998,0.00033573,2]
[354439411,1740496243611,-12539.66358002,0.00034999,2]
[354439414,1740496243633,-925.29079128,0.00034999,2]
[354439416,1740496243644,-129258.84949398,0.00034999,2]
[354439418,1740496243656,-5413.52413977,0.00034999,2]
[354439424,1740496243700,-1952.78621832,0.00034999,2]
[354439537,1740496246477,-13066.65,0.00034999,2]
[354439538,1740496246488,-25246.18570308,0.00034999,2]
[354439539,1740496246498,-263.25,0.00035,7]
[354439540,1740496246507,-263.25,0.00035,7]
[354439541,1740496246517,-263.25,0.00035,7]
[354439542,1740496246526,-263.25,0.00035,7]
[354439543,1740496246536,-151.0,0.00035,7]
[354439544,1740496246546,-151.0,0.00035,7]
[354439545,1740496246556,-151.0,0.00035,7]
[354439546,1740496246565,-151.0,0.00035,7]
[354439547,1740496246574,-151.0,0.00035,7]
[354439548,1740496246584,-151.0,0.00035,7]